bitfinex-derivatives/quotes_SOLF0:USTF0_20250820
["timestamp","ask_amount","ask_price","bid_price","bid_amount"]
[1755730032617,2.91,187.53,187.49,3.04682949]
[1755730033517,131.66,187.54,187.51,3.01]
[1755730033914,134.57,187.54,187.49,0.03682949]
[1755730034112,134.57,187.54,187.5,3.01]
[1755730035221,134.57,187.54,187.51,3.01]
[1755730035916,131.66,187.54,187.51,3.01]
[1755730036117,134.57,187.54,187.51,3.01]
[1755730038918,2.91,187.53,187.49,0.03682949]
[1755730039120,2.91,187.53,187.5,3.01]
[1755730042628,131.66,187.54,187.49,0.03682949]
[1755730042825,131.66,187.54,187.51,3.01]
[1755730043025,134.57,187.54,187.51,3.01]
[1755730044724,141.53631716,187.58,187.49,0.03682949]
[1755730044725,141.53631716,187.58,187.5,3.01]
[1755730044929,131.3,187.59,187.52,3.01]
[1755730045330,131.3,187.59,187.53,5.3315]
[1755730045723,131.3,187.59,187.56,3.01]
[1755730047829,134.35,187.59,187.56,3.01]
[1755730048024,3.05,187.58,187.54,0.0357548]
[1755730048222,3.05,187.58,187.54,3.0457548]
[1755730048721,3.05,187.57,187.54,3.0457548]
[1755730051828,134.35,187.59,187.54,0.0357548]
[1755730052032,134.35,187.59,187.56,3.01]
[1755730052530,131.3,187.59,187.54,3.0457548]
[1755730052733,3.05,187.58,187.54,3.0457548]
[1755730052937,3.05,187.64,187.55,3.01]
[1755730053137,2.32524494,187.68,187.56,2.32524494]
[1755730053337,132.28,187.67,187.57,3.01]
[1755730053535,3.05,187.66,187.57,3.01]
[1755730053832,3.05,187.64,187.6,0.03577254]
[1755730054035,3.05,187.62,187.6,0.03577254]
[1755730054237,132.36,187.63,187.56,3.01]
[1755730054436,3.05,187.61,187.57,3.01]
[1755730054632,3.05,187.62,187.59,3.04802047]
[1755730055730,132.36,187.63,187.59,0.03802047]
[1755730056036,3.05,187.62,187.59,0.03802047]
[1755730056532,132.36,187.63,187.59,0.03802047]
[1755730056734,3.05,187.61,187.59,0.03802047]
[1755730056934,3.05,187.62,187.59,3.04802047]
[1755730059435,132.36,187.63,187.6,3.01]
[1755730059633,3.05,187.63,187.6,3.01]
[1755730060637,3.05,187.63,187.59,0.03802047]
[1755730060836,3.05,187.62,187.59,0.03802047]
[1755730061240,3.05,187.62,187.59,3.04802047]
[1755730061943,135.33,187.64,187.6,3.01]
[1755730062139,3.05,187.63,187.6,3.01]
[1755730062536,132.28,187.64,187.59,0.03802047]
[1755730062839,132.28,187.64,187.62,3.01]
[1755730063344,3.05,187.67,187.61,3.01]
[1755730064442,3.05,187.67,187.61,8.3394]
[1755730064745,3.05,187.67,187.61,3.01]
[1755730065744,3.05,187.67,187.61,8.3394]
[1755730066541,3.05,187.67,187.61,3.01]
[1755730066940,3.05,187.7,187.61,3.01]
[1755730067140,135.15,187.7,187.63,5.3288]
[1755730067334,135.15,187.7,187.63,8.3388]
[1755730067740,132.1,187.7,187.65,0.03454181]
[1755730067944,3.05,187.69,187.65,3.04454181]
[1755730069042,3.05,187.67,187.65,0.03454181]
[1755730069835,3.05,187.69,187.65,0.03454181]
[1755730070244,3.05,187.67,187.65,0.03454181]
[1755730070442,3.05,187.66,187.65,0.03454181]
[1755730073048,363.75524494,187.72,187.65,0.03454181]
[1755730073241,132.12,187.71,187.65,0.03454181]
[1755730073439,3.05,187.69,187.65,3.04454181]
[1755730073651,3.05,187.68,187.65,3.04454181]
[1755730076153,2.89,187.7,187.65,0.03454181]
[1755730076451,2.89,187.69,187.65,0.03454181]
[1755730076650,2.89,187.67,187.65,0.03454181]
[1755730077240,132.12,187.71,187.65,0.03454181]
[1755730077444,2.89,187.66,187.65,0.03454181]
[1755730082053,134.81,187.66,187.65,0.03454181]
[1755730083450,134.81,187.66,187.57,3.05]
[1755730083451,131.92,187.66,187.57,3.05]
[1755730083654,2.89,187.63,187.57,3.05]
[1755730084658,2.89,187.6,187.53,3.05]
[1755730084857,131.88,187.59,187.53,3.05]
[1755730085757,2.89,187.57,187.5,3.05]
[1755730086459,0.03854512,187.58,187.5,3.05]
[1755730086659,2.89,187.57,187.5,3.05]
[1755730086955,0.03854512,187.58,187.5,3.05]
[1755730087158,0.03854512,187.58,187.52,3.05]
[1755730087352,0.03854512,187.58,187.52,7.50211236]
[1755730087551,0.03854512,187.58,187.55,3.05]
[1755730087763,0.03854512,187.58,187.54,5.3313]
[1755730087962,0.03854512,187.58,187.56,3.05]
[1755730088160,0.03854512,187.58,187.55,3.05]
[1755730089264,0.03854512,187.58,187.56,4.45211236]
[1755730089566,0.03854512,187.58,187.57,8.3805]
[1755730090062,0.03854512,187.58,187.57,12.83261236]
[1755730090260,131.98,187.66,187.61,5.3293]
[1755730090561,131.98,187.66,187.63,3.05]
[1755730091158,134.87,187.66,187.63,3.05]
[1755730091663,134.87,187.66,187.63,3.08955957]
[1755730093062,2.89,187.65,187.63,0.03955957]
[1755730093960,131.98,187.66,187.63,0.03955957]
[1755730094165,2.89,187.64,187.63,0.03955957]
[1755730095355,2.89,187.66,187.63,0.03955957]
[1755730095560,2.32524494,187.69,187.65,3.05]
[1755730095561,2.89,187.69,187.65,3.05]
[1755730096063,2.89,187.69,187.66,3.05]
[1755730096369,134.75,187.71,187.66,3.05]
[1755730096762,134.75,187.71,187.67,3.05]
[1755730097658,134.75,187.71,187.67,3.08565312]
[1755730098670,2.89,187.7,187.67,3.08565312]
[1755730099367,2.89,187.7,187.67,0.03565312]
[1755730099666,2.89,187.69,187.67,0.03565312]
[1755730100263,2.89,187.68,187.67,0.03565312]
[1755730103161,134.63,187.68,187.67,0.03565312]
[1755730105863,2.89,187.68,187.67,0.03565312]
[1755730106068,134.59,187.68,187.67,0.03565312]
[1755730107970,134.55,187.68,187.67,0.03565312]
[1755730113377,136.87524494,187.68,187.67,0.03565312]
[1755730115370,3.05,187.64,187.58,7.48292375]
[1755730115571,134.53,187.63,187.59,3.01]
[1755730116473,131.48,187.63,187.59,3.01]
[1755730116772,134.53,187.63,187.59,3.01]
[1755730116978,131.48,187.63,187.59,3.01]
[1755730117167,3.05,187.62,187.59,3.01]
[1755730117572,131.48,187.63,187.6,3.01]
[1755730118173,134.53,187.63,187.6,3.01]
[1755730118380,134.56539606,187.63,187.6,3.01]
[1755730119279,131.51539606,187.63,187.61,3.01]
[1755730120774,134.56539606,187.63,187.58,3.01]
[1755730121480,134.56539606,187.63,187.59,3.01]
[1755730121681,134.56539606,187.63,187.6,3.01]
[1755730123077,131.51539606,187.63,187.6,3.01]
[1755730123285,131.51539606,187.63,187.58,3.01]
[1755730123483,131.51539606,187.63,187.57,200.96038569]
[1755730123682,131.51539606,187.63,187.58,3.01]
[1755730123875,131.51539606,187.63,187.6,3.01]
[1755730124583,134.56539606,187.63,187.6,3.01]
[1755730124980,134.56539606,187.63,187.57,200.96038569]
[1755730124981,131.51539606,187.63,187.61,3.01]
[1755730125580,131.51539606,187.63,187.57,200.96038569]
[1755730125581,134.56539606,187.63,187.57,200.96038569]
[1755730125883,134.56539606,187.63,187.6,3.01]
[1755730131991,3.08539606,187.63,187.6,3.01]
[1755730132386,3.08539606,187.63,187.57,200.96038569]
[1755730132588,0.03539606,187.63,187.58,7.48292375]
[1755730132790,0.03539606,187.63,187.59,3.01]
[1755730132991,0.03539606,187.63,187.58,4.47292375]
[1755730133191,0.03539606,187.63,187.62,3.01]
[1755730137588,0.03539606,187.63,187.58,4.47292375]
[1755730137794,2.83539606,187.63,187.59,2.85]
[1755730137994,2.83539606,187.63,187.58,4.47292375]
[1755730138194,0.03539606,187.63,187.59,2.85]
[1755730138385,0.03539606,187.63,187.6,2.85]
[1755730138585,0.03539606,187.63,187.61,2.85]
[1755730139298,0.03539606,187.63,187.62,2.85]
[1755730140404,2.83539606,187.63,187.58,4.47292375]
[1755730140598,2.83539606,187.63,187.61,2.85]
[1755730140900,0.03539606,187.63,187.62,2.85]
[1755730142897,0.03539606,187.63,187.61,2.85]
[1755730143291,0.03539606,187.63,187.59,4.47292375]
[1755730143495,0.03539606,187.63,187.62,2.85]
[1755730149709,0.03539606,187.63,187.61,7.32292375]
[1755730151009,0.03539606,187.63,187.62,2.85]
[1755730151412,0.03539606,187.63,187.62,7.32292375]
[1755730152407,0.03539606,187.63,187.62,4.47292375]
[1755730152611,2.83539606,187.63,187.62,4.47292375]
[1755730152913,0.03539606,187.63,187.62,4.47292375]
[1755730153313,0.03539606,187.63,187.62,7.32292375]
[1755730154014,0.03539606,187.63,187.62,4.47292375]
[1755730154214,2.83539606,187.63,187.61,4.47292375]
[1755730154417,2.83539606,187.63,187.6,7.32292375]
[1755730154714,2.8,187.61,187.59,4.47292375]
[1755730154918,2.8,187.6,187.58,4.47292375]
[1755730155310,2.8,187.59,187.58,4.47292375]
[1755730156014,0.03539606,187.63,187.56,4.47292375]
[1755730156015,2.8,187.61,187.56,4.47292375]
[1755730156211,2.8,187.61,187.55,4.47292375]
[1755730156811,2.8,187.61,187.55,2.85]
[1755730157017,0.03417599,187.6,187.55,2.85]
[1755730157215,2.8,187.58,187.55,7.32292375]
[1755730158518,0.03417599,187.6,187.55,7.32292375]
[1755730158818,2.8,187.59,187.54,4.47292375]
[1755730159023,2.8,187.59,187.53,4.47292375]
[1755730160718,2.8,187.59,187.54,2.85]
[1755730160926,2.8,187.59,187.55,2.85]
[1755730161725,2.8,187.59,187.56,2.85]
[1755730161916,2.8,187.59,187.53,4.47292375]
[1755730161917,2.8,187.58,187.53,7.32292375]
[1755730162123,2.8,187.58,187.53,4.47292375]
[1755730162324,2.8,187.58,187.55,2.85]
[1755730163123,0.03417599,187.6,187.58,2.85]
[1755730163524,133.64524494,187.64,187.54,9.80412375]
[1755730163819,2.32524494,187.64,187.58,2.85]
[1755730164022,2.32524494,187.64,187.55,4.47292375]
[1755730164217,2.8,187.6,187.56,2.85]
[1755730164419,2.8,187.63,187.54,4.47292375]
[1755730165828,3.03,187.62,187.54,4.47292375]
[1755730167429,0.03426524,187.6,187.54,4.47292375]
[1755730167633,0.03426524,187.6,187.55,3.05]
[1755730167928,3.03,187.59,187.56,3.05]
[1755730168922,3.03,187.58,187.54,4.47292375]
[1755730169119,3.03,187.58,187.55,3.05]
[1755730170129,0.03426524,187.6,187.56,3.05]
[1755730170331,3.03,187.59,187.56,3.05]
[1755730170518,3.03,187.59,187.53,7.52292375]
[1755730174331,3.03,187.59,187.53,9.00905872]
[1755730177927,3.03,187.59,187.53,7.52292375]
[1755730178127,1.48613497,187.56,187.53,7.52292375]
[1755730178429,3.03,187.55,187.53,3.05]
[1755730178629,3.03,187.55,187.52,4.47292375]
[1755730178821,1.48613497,187.56,187.5,9.03972464]
[1755730178822,3.03,187.54,187.51,4.47292375]
[1755730179023,3.03,187.54,187.51,7.52292375]
[1755730180026,0.03559934,187.55,187.52,3.05]
[1755730180232,0.03559934,187.55,187.53,3.05]
[1755730180631,0.03559934,187.55,187.52,3.05]
[1755730181132,0.03559934,187.55,187.54,3.05]
[1755730183132,0.03559934,187.55,187.52,7.52292375]
[1755730183337,0.03559934,187.55,187.53,3.05]
[1755730184535,3.03,187.54,187.52,4.47292375]
[1755730185135,0.03559934,187.55,187.52,4.47292375]
[1755730185337,3.03,187.53,187.51,4.47292375]
[1755730187031,3.03,187.54,187.51,4.47292375]
[1755730187632,3.03,187.54,187.5,4.47292375]
[1755730188031,3.03,187.52,187.5,4.47292375]
[1755730188232,3.03,187.51,187.5,4.47292375]
[1755730189235,3.03,187.5,187.49,4.47292375]
[1755730189433,3.03,187.54,187.48,4.47292375]
[1755730190040,0.03778014,187.53,187.48,4.47292375]
[1755730190536,5.35279903,187.52,187.48,4.47292375]
[1755730190733,3.03,187.51,187.48,4.47292375]
[1755730191135,3.03,187.5,187.47,4.47292375]
[1755730191334,2.32279903,187.52,187.47,4.47292375]
[1755730191533,3.03,187.48,187.47,4.47292375]
[1755730192033,3.03,187.48,187.47,4.46796092]
[1755730192235,3.03,187.48,187.46,5.98972464]
[1755730192442,5.35279903,187.52,187.46,9.03972464]
[1755730192741,3.03,187.52,187.49,3.05]
[1755730192941,0.03525277,187.51,187.49,3.05]
[1755730193239,0.03525277,187.51,187.48,4.47252792]
[1755730193446,0.03525277,187.51,187.5,3.05]
[1755730195343,0.03525277,187.51,187.5,7.52252792]
[1755730195739,0.03525277,187.51,187.5,3.05]
[1755730197640,0.03525277,187.51,187.46,4.47252792]
[1755730198047,0.03525277,187.51,187.49,2.89]
[1755730198642,0.03525277,187.51,187.5,2.89]
[1755730200247,0.03525277,187.51,187.45,7.36252792]
[1755730200451,2.85,187.46,187.44,4.47252792]
[1755730201045,2.85,187.46,187.43,7.36252792]
[1755730201344,0.03697898,187.47,187.44,2.89]
[1755730201546,2.88697898,187.47,187.44,2.89]
[1755730201740,2.85,187.46,187.43,7.36252792]
[1755730202541,2.85,187.46,187.43,2.89]
[1755730204341,0.03697898,187.47,187.42,4.47252792]
[1755730204544,0.03697898,187.47,187.44,2.89]
[1755730204843,0.03697898,187.47,187.45,2.89]
[1755730205947,2.88697898,187.47,187.43,2.89]
[1755730206248,2.88697898,187.47,187.45,2.89]
[1755730206550,0.03697898,187.47,187.45,2.89]
[1755730206737,0.03697898,187.47,187.42,4.47252792]
[1755730206738,0.03697898,187.47,187.46,2.89]
[1755730210950,0.03697898,187.47,187.43,2.89]
[1755730210951,2.85,187.46,187.43,2.89]
[1755730211150,0.03697898,187.47,187.44,2.89]
[1755730212750,0.03697898,187.47,187.41,4.47252792]
[1755730212954,0.03697898,187.47,187.46,2.89]
[1755730214645,0.03697898,187.47,187.46,8.2235]
[1755730219461,0.03697898,187.47,187.46,2.89]
[1755730219663,0.03697898,187.47,187.46,7.36252792]
[1755730220666,0.03697898,187.47,187.46,2.89]
[1755730220966,0.03697898,187.47,187.45,7.36252792]
[1755730221164,0.03697898,187.47,187.45,7.35827655]
[1755730221364,2.88697898,187.47,187.45,4.46827655]
[1755730221563,2.88697898,187.47,187.44,4.46827655]
[1755730222268,0.03697898,187.47,187.45,4.46827655]
[1755730222565,0.03697898,187.47,187.46,2.89]
[1755730224070,0.03697898,187.47,187.44,4.46827655]
[1755730224369,0.03697898,187.47,187.45,4.46827655]
[1755730224566,0.03697898,187.47,187.44,7.35827655]
[1755730224868,0.03697898,187.47,187.45,2.89]
[1755730225271,0.03697898,187.47,187.46,2.89]
[1755730225461,0.03697898,187.47,187.46,7.35827655]
[1755730225968,0.03697898,187.47,187.46,12.69187655]
[1755730228872,0.03697898,187.47,187.46,12.85187655]
[1755730229469,0.03697898,187.47,187.46,8.3836]
[1755730229676,140.5580965,187.57,187.51,5.3321]
[1755730229866,143.4980965,187.57,187.49,3.05]
[1755730230069,2.94,187.57,187.49,3.05]
[1755730230269,2.94,187.57,187.53,8.3815]
[1755730230574,2.94,187.56,187.5,3.05]
[1755730230975,360.64279903,187.62,187.52,5.3318]
[1755730231177,2.94,187.56,187.52,8.3818]
[1755730231673,2.94,187.56,187.53,8.3816]
[1755730233276,2.94,187.61,187.52,0.03411696]
[1755730233469,2.94,187.58,187.52,0.03411696]
[1755730236576,2.94,187.55,187.52,0.03411696]
[1755730236979,2.94,187.54,187.52,0.03411696]
[1755730237175,2.94,187.53,187.52,0.03411696]
[1755730238070,2.94,187.53,187.44,2.32279903]
[1755730238071,2.94,187.53,187.46,4.46967847]
[1755730238474,2.94,187.53,187.44,4.46967847]
[1755730238675,2.94,187.53,187.45,4.46967847]
[1755730238978,2.94,187.53,187.46,7.51967847]
[1755730239577,2.94,187.53,187.46,4.46967847]
[1755730240081,0.03393845,187.51,187.46,4.46967847]
[1755730240279,2.94,187.49,187.46,4.46967847]
[1755730240475,2.97393845,187.51,187.47,3.05]
[1755730240782,2.97393845,187.51,187.48,3.05]
[1755730240986,0.03393845,187.51,187.49,3.05]
[1755730241183,2.97393845,187.51,187.46,4.46967847]
[1755730241378,2.97393845,187.51,187.47,3.05]
[1755730242381,2.97393845,187.51,187.47,7.51967847]
[1755730243083,2.94,187.5,187.47,4.46967847]
[1755730243286,2.94,187.49,187.46,4.46967847]
[1755730243488,2.94,187.48,187.46,4.46967847]
[1755730243972,2.94,187.5,187.46,4.46967847]
[1755730244173,0.03393845,187.51,187.49,3.05]
[1755730244383,2.97393845,187.51,187.47,4.46967847]
[1755730244584,0.03393845,187.51,187.48,3.05]
[1755730245576,2.97393845,187.51,187.48,3.05]
[1755730245779,2.97393845,187.51,187.47,3.05]
[1755730246389,2.97393845,187.51,187.47,7.51967847]
[1755730246980,2.97393845,187.51,187.48,3.05]
[1755730247282,0.03393845,187.51,187.47,4.46967847]
[1755730247489,0.03393845,187.51,187.49,3.05]
[1755730248392,0.03393845,187.51,187.47,4.46967847]
[1755730248690,0.03393845,187.51,187.48,3.05]
[1755730249386,2.97393845,187.51,187.48,3.05]
[1755730251690,2.97393845,187.51,187.48,7.51967847]
[1755730254992,2.97393845,187.51,187.48,3.05]
[1755730255496,2.97393845,187.51,187.48,7.51967847]
[1755730256098,0.03393845,187.51,187.48,7.51967847]
[1755730256397,2.80393845,187.51,187.48,7.51967847]
[1755730259505,0.03393845,187.51,187.48,4.46967847]
[1755730259908,2.80393845,187.51,187.48,7.39967847]
[1755730260105,2.80393845,187.51,187.48,7.40297924]
[1755730261908,0.03393845,187.51,187.48,4.47297924]
[1755730262113,0.03393845,187.51,187.5,2.93]
[1755730262608,0.03393845,187.51,187.5,7.40297924]
[1755730262813,0.03393845,187.51,187.5,12.73537924]
[1755730264714,0.03393845,187.51,187.5,7.40297924]
[1755730265714,0.03393845,187.51,187.5,13.27537924]
[1755730265910,0.03393845,187.51,187.5,14.79212464]
[1755730269114,2.77,187.6,187.51,2.93]
[1755730269307,2.77,187.6,187.55,2.93]
[1755730269511,2.77,187.6,187.57,2.93]
[1755730269707,2.32279903,187.62,187.54,4.4639771]
[1755730269915,2.77,187.61,187.54,4.4639771]
[1755730270116,2.77,187.61,187.53,7.3939771]
[1755730270309,2.77,187.61,187.53,4.4639771]
[1755730270512,2.77,187.61,187.56,0.03900829]
[1755730270914,2.32279903,187.59,187.56,0.03900829]
[1755730271111,2.77,187.58,187.56,0.03900829]
[1755730272515,2.77,187.58,187.49,4.4639771]
[1755730272810,2.77,187.55,187.48,4.4639771]
[1755730273410,2.77,187.55,187.46,4.4639771]
[1755730273817,2.77,187.52,187.46,4.4639771]
[1755730275017,2.77,187.52,187.45,4.4639771]
[1755730275417,2.77,187.52,187.44,7.3939771]
[1755730275619,2.77,187.52,187.44,4.4639771]
[1755730276616,2.77,187.52,187.43,4.4639771]
[1755730276817,2.32279903,187.5,187.43,4.4639771]
[1755730277019,2.77,187.49,187.43,4.4639771]
[1755730277522,2.77,187.47,187.43,7.3939771]
[1755730278321,2.77,187.46,187.43,7.3939771]
[1755730279329,2.77,187.46,187.43,2.93]
[1755730280017,0.03610961,187.48,187.44,2.93]
[1755730280220,2.77,187.47,187.44,2.93]
[1755730282527,2.77,187.46,187.43,4.4639771]
[1755730282721,2.77,187.45,187.42,4.4639771]
[1755730282917,2.77,187.44,187.41,7.3939771]
[1755730283121,2.77,187.44,187.41,2.93]
[1755730283524,2.77,187.47,187.42,2.93]
[1755730283724,0.0365302,187.44,187.42,2.93]
[1755730283924,2.77,187.43,187.4,214.62695686]
[1755730284923,2.77,187.43,187.4,210.16297976]
[1755730285119,0.0365302,187.44,187.38,4.4639771]
[1755730285120,2.77,187.41,187.38,4.4639771]
[1755730285525,2.77,187.41,187.37,7.3939771]
[1755730285727,2.77,187.43,187.37,7.3939771]
[1755730286121,2.77,187.43,187.37,4.4639771]
[1755730286330,2.77,187.43,187.36,4.4639771]
[1755730286929,2.77,187.43,187.36,7.2839771]
[1755730288731,2.77,187.43,187.38,2.82]
[1755730288933,0.0365302,187.44,187.37,7.2839771]
[1755730289131,0.0365302,187.44,187.39,7.2839771]
[1755730289428,0.0365302,187.44,187.39,4.4639771]
[1755730289735,0.0365302,187.44,187.41,2.82]
[1755730290129,2.9865302,187.44,187.41,2.82]
[1755730291425,0.0365302,187.44,187.38,4.4639771]
[1755730291626,0.0365302,187.44,187.42,2.82]
[1755730292737,0.0365302,187.44,187.4,5.3351]
[1755730293336,0.0365302,187.44,187.42,2.82]
[1755730294836,0.0365302,187.44,187.39,8.1554]
[1755730295028,2.9865302,187.44,187.37,7.2839771]
[1755730295228,2.9865302,187.44,187.37,12.6199771]
[1755730295530,2.9865302,187.44,187.37,8.156]
[1755730296333,2.9865302,187.44,187.37,2.82]
[1755730297735,2.9865302,187.44,187.37,8.156]
[1755730297940,2.9865302,187.44,187.38,2.82]
[1755730298334,2.9865302,187.44,187.38,8.1557]
[1755730300337,0.0365302,187.44,187.38,8.1557]
[1755730302737,0.0365302,187.44,187.4,2.82]
[1755730302930,0.0365302,187.44,187.41,2.82]
[1755730304240,2.9865302,187.44,187.41,2.82]
[1755730305039,0.0365302,187.44,187.41,5.3348]
[1755730305236,0.0365302,187.44,187.37,2.82]
[1755730305541,0.0365302,187.44,187.38,5.3356]
[1755730306346,0.0365302,187.44,187.38,2.82]
[1755730306534,2.95,187.42,187.38,2.82]
[1755730306947,0.0365302,187.44,187.38,2.82]
[1755730307134,2.95,187.42,187.38,2.82]
[1755730307441,2.95,187.43,187.35,2.82]
[1755730307943,2.32279903,187.43,187.33,207.15824825]
[1755730308137,2.95,187.42,187.33,207.15824825]
[1755730308344,2.32279903,187.43,187.33,207.15824825]
[1755730308345,2.95,187.4,187.33,212.49544825]
[1755730312939,2.95,187.4,187.33,207.15824825]
[1755730314544,2.95,187.4,187.32,2.82]
[1755730314545,5.27279903,187.4,187.32,2.82]
[1755730314739,2.95,187.39,187.32,2.82]
[1755730314938,2.95,187.39,187.29,12.6221771]
[1755730315336,2.95,187.39,187.3,4.4639771]
[1755730315646,0.04020573,187.36,187.29,12.6221771]
[1755730315939,3.07020573,187.36,187.29,7.2839771]
[1755730317644,3.07020573,187.36,187.29,2.82]
[1755730318138,3.07020573,187.36,187.29,7.2839771]
[1755730318346,3.03,187.35,187.31,4.4639771]
[1755730318645,3.03,187.33,187.3,7.2839771]
[1755730318850,3.03,187.35,187.28,210.94011299]
[1755730319443,0.04020573,187.36,187.29,2.82]
[1755730319642,0.04020573,187.36,187.3,4.4639771]
[1755730319844,0.04020573,187.36,187.32,2.82]
[1755730320047,0.04020573,187.36,187.31,5.3377]
[1755730320243,0.04020573,187.36,187.34,2.82]
[1755730322048,0.04020573,187.36,187.32,2.82]
[1755730322249,3.07020573,187.36,187.32,2.82]
[1755730322841,3.07020573,187.36,187.31,2.82]
[1755730323042,3.07020573,187.36,187.3,4.4639771]
[1755730323245,3.07020573,187.36,187.33,2.82]
[1755730323447,0.04020573,187.36,187.33,2.82]
[1755730324748,3.07020573,187.36,187.33,2.82]
[1755730325445,3.03,187.35,187.3,7.2839771]
[1755730325749,3.03,187.35,187.32,2.82]
[1755730326352,0.04020573,187.36,187.32,2.82]
[1755730326549,3.07020573,187.36,187.32,2.82]
[1755730327253,3.07020573,187.36,187.31,5.3377]
[1755730327442,3.07020573,187.36,187.33,2.82]
[1755730327645,0.04020573,187.36,187.31,7.2839771]
[1755730327850,0.04020573,187.36,187.32,5.3373]
[1755730328046,0.04020573,187.36,187.33,2.82]
[1755730328247,0.04020573,187.36,187.34,2.82]
[1755730328449,0.04020573,187.36,187.35,2.82]
[1755730329450,0.04020573,187.36,187.33,2.82]
[1755730329952,0.04020573,187.36,187.31,4.4639771]
[1755730330349,0.04020573,187.36,187.34,2.82]
[1755730336156,3.07020573,187.36,187.34,2.82]
[1755730338256,0.04020573,187.36,187.34,2.82]
[1755730339256,3.07020573,187.36,187.34,2.82]
[1755730340256,3.03,187.35,187.29,7.2839771]
[1755730345669,3.03,187.35,187.29,4.4639771]
[1755730345864,3.03,187.35,187.32,2.98]
[1755730346060,3.03,187.35,187.33,2.98]
[1755730348261,0.04020573,187.36,187.32,2.98]
[1755730348466,0.04020573,187.36,187.3,5.3379]
[1755730348467,0.04020573,187.36,187.3,9.8018771]
[1755730348668,0.04020573,187.36,187.31,2.98]
[1755730349163,0.04020573,187.36,187.31,7.4439771]
[1755730349367,0.04020573,187.36,187.32,4.4639771]
[1755730349566,0.04020573,187.36,187.33,2.98]
[1755730349968,0.04020573,187.36,187.32,4.4639771]
[1755730350370,0.04020573,187.36,187.35,7.4439771]
[1755730353667,0.04020573,187.36,187.35,2.98]
[1755730356571,0.04020573,187.36,187.35,8.3166]
[1755730357267,0.04020573,187.36,187.35,16.5913685]
[1755730357664,0.04020573,187.36,187.35,17.1313685]
[1755730357865,0.04020573,187.36,187.35,11.17939903]
[1755730358068,0.04020573,187.36,187.35,10.63939903]
[1755730359371,0.04020573,187.36,187.35,16.6066854]
[1755730360074,0.04020573,187.36,187.34,14.28418637]
[1755730361366,0.04020573,187.36,187.34,5.96728637]
[1755730361572,0.04020573,187.36,187.34,8.94728637]
[1755730362076,0.04020573,187.36,187.35,4.47569131]
[1755730364371,0.04020573,187.36,187.35,9.81229131]
[1755730364577,0.04020573,187.36,187.35,8.3166]
[1755730368478,0.04020573,187.36,187.35,16.6066854]
[1755730368687,3.03,187.42,187.39,5.3354]
[1755730368874,3.03,187.42,187.4,2.98]
[1755730369579,3.03,187.44,187.41,2.98]
[1755730369977,3.03,187.44,187.41,3.02008714]
[1755730370783,3.03,187.44,187.42,2.98]
[1755730370974,131.06,187.48,187.42,2.98]
[1755730371174,3.03,187.47,187.42,2.98]
[1755730371376,3.03,187.46,187.42,8.3146]
[1755730371578,3.03,187.46,187.43,2.98]
[1755730372076,3.03,187.45,187.43,2.98]
[1755730372276,3.03,187.45,187.42,5.3346]
[1755730372579,3.03,187.45,187.42,8.3146]
[1755730376281,3.03,187.45,187.43,2.99]
[1755730377383,3.03,187.45,187.42,5.3346]
[1755730377585,3.03,187.45,187.42,8.3246]
[1755730378878,3.03,187.45,187.43,8.3243]
[1755730379778,140.31614825,187.49,187.42,5.3345]
[1755730379984,2.85,187.48,187.42,5.3345]
[1755730380184,2.85,187.48,187.41,3.03008714]